Cogmind - Beta 16.1 @@@ ROGUE MODE // 2026.02.16 @ 12:22:53 Player: Zish Result: Destroyed by KI-XZN(R) with Subdweller Laser Performance ------------- Evolutions (0) 0 Regions Visited (2) 400 Robots Destroyed (22) 110 Value Destroyed (488) 488 Prototype IDs (2) 40 Alien Tech Used (0) 0 Bonus (0) 0 TOTAL SCORE: 1038 Bonus ------- None Cogmind --------- Core Integrity 0/250 Matter 241/300 Energy 117/125 System Corruption 1% Temperature Cool (6) Movement Rolling (130) Ox2 Location -10/Subcaves Parts ------- > --- POWER (1) -------- Light Ion Engine > --- PROPULSION (2) --- Compact Wheel > --- UTILITY (2) ------ High-capacity Storage Unit Signal Interpreter > --- WEAPON (2) ------- Small Laser > --- INVENTORY (20) --- Light Ion Engine Subdweller Power Source Light Treads Peak State ------------ > --- POWER ------------ Light Ion Engine > --- PROPULSION ------- Compact Wheel Subdweller Monowheel > --- UTILITY ---------- High-capacity Storage Unit Signal Interpreter > --- WEAPON ----------- Light Assault Rifle Flamer > --- INVENTORY -------- Light Ion Engine Light Treads Small Laser [Rating: 9] Favorites ----------- Power Light Ion Engine Engine Light Ion Engine Propulsion Light Treads Treads Light Treads Wheel Compact Wheel Utility Signal Interpreter Storage High-capacity Storage Unit Processor Signal Interpreter Weapon Light Assault Rifle Energy Gun EM Pulse Gun Ballistic Gun Light Assault Rifle Launcher Grenade Launcher Special Weapon Flamer Build | -11 -10 -10 ------- Run | Yrd Mat Sub Slots Evolved . | . . . Power . | . . . Propulsion . | . . . Utility . | . . . Weapon . | . . . Parts Attached 18 | 7 4 7 Power 3 | 1 1 1 Engine 3 | 1 1 1 Core . | . . . Reactor . | . . . Propulsion 5 | 2 . 3 Treads 3 | 2 . 1 Leg . | . . . Wheel 2 | . . 2 Hover . | . . . Flight . | . . . Utility 3 | 1 2 . Device . | . . . Storage 2 | 1 1 . Processor 1 | . 1 . Hackware . | . . . Protection . | . . . Artifact . | . . . Weapon 7 | 3 1 3 Energy Gun 2 | 2 . . Energy Cannon . | . . . Ballistic Gun 3 | 1 1 1 Ballistic Cannon . | . . . Launcher 1 | . . 1 Special Weapon 1 | . . 1 Impact Weapon . | . . . Slashing Weapon . | . . . Piercing Weapon . | . . . Special Melee Weapon . | . . . Unidentified Prototypes . | . . . Parts Lost 11 | . 2 9 Power 2 | . 1 1 Propulsion 3 | . . 3 Utility . | . . . Weapon 6 | . 1 5 Highest Loss Streak 4 | . 1 4 To Critical Strikes . | . . . Average Backups 3 | . 5 3 Power 1 | . 1 1 Propulsion . | . . . Utility . | . . . Weapon 2 | . 3 1 Tool/Special . | . . . Unused Backups 3 | . 1 2 Power 3 | . 1 2 Propulsion . | . . . Utility . | . . . Weapon . | . . . Tool/Special . | . . . Average Slot Usage (%) 92 | . 93 91 Engine 13 | . 13 13 Treads 23 | . 28 19 Storage 14 | . 14 14 Processor 11 | . 8 14 Energy Gun 2 | . 4 1 Ballistic Gun 18 | . 23 15 Launcher 2 | . . 4 Special Weapon 4 | . . 7 Peak Build Rating 9 | 6 7 9 Average Rating 6 | 4 6 6 On Entrance 4 | . 6 7 Avg Prop Armor Cover (%) . | . . . Naked Turns . | . . . Heaviest Build 49 | 12 48 49 Greatest Support 40 | 40 40 40 Greatest Overweight (x) 2 | . 1 2 Average Overweight (x) . | . . 1 Largest Inventory Capacity 20 | 8 20 20 Average Capacity 16 | 6 13 20 Most Carried 7 | 2 7 6 Average Carried 3 | . 5 3 Final Capacity 20 | 8 20 20 Final Carried 6 | 2 6 3 Class Distribution -------------------- 100% | Mutant Dominant Class ---------------- Mutant | -10/Materials Mutant | -10/Subcaves Resources | -11 -10 -10 ----------- Run | Yrd Mat Sub Matter Collected 688 | 214 283 191 Remotely . | . . . Salvage Created 629 | . 496 133 Parts 46 | . 36 10 Haulers Intercepted . | . . . Recyclers Shooed 1 | . 1 . Parts Field Recycled . | . . . Retrieved Matter . | . . . Parts Self-Destructed 1 | . . 1 Prevented . | . . . Parts Restored . | . . . Kills | -11 -10 -10 ------- Run | Yrd Mat Sub Combat Hostiles Destroyed 16 | . 12 4 Guns 14 | . 12 2 Cannons 1 | . . 1 AOE 1 | . . 1 Classes Destroyed 10 | . 8 2 Worker 1 | . 1 . Builder 1 | . 1 . Tunneler 1 | . 1 . Recycler 1 | . 1 . Operator 1 | . 1 . Watcher 1 | . 1 . Swarmer 6 | . 6 . Grunt 6 | . 6 . Artisan 1 | . . 1 Subdweller 4 | . . 4 Best Kill Streak 5 | . 5 2 Combat Bots Only 5 | . 5 2 Max Kills in Single Turn 1 | . 1 1 Gunslinging . | . . . Exploded 1 | . . 1 Melee . | . . . Uniques/NPCs Destroyed . | . . . Combat | -11 -10 -10 -------- Run | Yrd Mat Sub Hostile Shots Fired 104 | . 57 47 Missed 21 | . 9 12 Hits 83 | . 48 35 Projectile 83 | . 48 35 Damage Taken 1349 | . 470 879 Core 263 | . 89 174 Absorbed by Shields . | . . . Core Remaining (%) 100 | 100 . . Volleys Fired 86 | . 54 32 Largest 2 | . 2 2 Hottest 120 | . 60 120 Shots Fired 156 | . 98 58 Gun 140 | . 98 42 Cannon . | . . . Launcher 12 | . . 12 Special 4 | . . 4 Kinetic 119 | . 84 35 Thermal 11 | . . 11 Explosive 12 | . . 12 Electromagnetic 14 | . 14 . Robot Hit Streak 19 | . 12 19 Robot Miss Streak 4 | . 4 2 Penetration Max . | . . . Secondary Targets 2 | . 2 . Max Gunslinging Chain 1 | . 1 . Shots Hit Robots 98 | . 63 35 Core Hits 40 | . 28 12 Critical Kills . | . . . Critical Parts Destroyed 2 | . 2 . Critical Strikes 2 | . 2 . Destroy 2 | . 2 . Melee Attacks . | . . . Impact . | . . . Slashing . | . . . Piercing . | . . . Sneak Attacks . | . . . Combat Hostiles . | . . . Follow-up Attacks . | . . . Damage Inflicted 1267 | . 714 553 Guns 939 | . 714 225 Cannons . | . . . Explosions 295 | . . 295 Melee . | . . . Ramming . | . . . Kinetic 730 | . 573 157 Thermal 101 | . . 101 Explosive 295 | . . 295 Electromagnetic 141 | . 141 . Impact . | . . . Slashing . | . . . Piercing . | . . . Highest Corruption 1 | . 1 1 Average Corruption 1 | . 1 1 Corruption Purged . | . . . Corruption Blocked . | . . . Effects 16 | . 1 15 Message Errors 8 | . . 8 Matter Fused 4 | . 1 3 Heat Flow Errors 1 | . . 1 Energy Discharges 1 | . . 1 Parts Rejected 1 | . . 1 Misfires 1 | . . 1 Overload Shots . | . . . Overflow Damage 14 | . . 14 Projectiles . | . . . Explosions 14 | . . 14 Melee . | . . . Knockbacks . | . . . Impact . | . . . Kinetic . | . . . Secondary . | . . . Self-Inflicted Damage 171 | . . 171 Shots 6 | . . 6 Rammed . | . . . Targets Rammed . | . . . Kicked . | . . . Crushed . | . . . Highest Temperature 213 | . 36 213 Average Temperature 31 | . 14 88 Received Heat Transfer 318 | . 150 168 Siege Activations . | . . . Martial Activations . | . . . Shielding Activations . | . . . Robots Disrupted . | . . . Combat Hostiles . | . . . Robots Corrupted . | . . . Combat Hostiles . | . . . Parts Fried . | . . . Impact Corruptions . | . . . Robots Melted . | . . . Combat Hostiles . | . . . Parts Melted . | . . . Heat Transferred 390 | . . 390 Parts Sabotaged . | . . . Parts Stolen . | . . . Parts Stripped . | . . . Power Chain Reactions . | . . . Alert | -11 -10 -10 ------- Run | Yrd Mat Sub Maximum Alert Level . | . . . Low Security (%) 100 | 100 100 . Level 1 . | . . . Level 2 . | . . . Level 3 . | . . . Level 4 . | . . . Level 5 . | . . . High Security . | . . . Max Security . | . . . Peak Influence 96 | . 96 . Initial . | . . . Average 21 | . 22 . Influence Increases 379 | . 379 . Destroy 0b10 Robot/C 240 | . 240 . Destroy 0b10 Robot/NC 30 | . 30 . Destroy Leader 62 | . 62 . Destroy Structure 2 | . 2 . Lose Combat Pursuer 45 | . 45 . Influence Decreases 379 | . 379 . Time Decay 347 | . 347 . Lost Part 10 | . 10 . Purge Threat 22 | . 22 . Squads Dispatched 3 | . 3 . Investigation 2 | . 2 . Extermination . | . . . Reinforcement 1 | . 1 . Assault . | . . . Garrison . | . . . Intercept . | . . . Searches Triggered . | . . . Construction Impeded . | . . . Haulers Reinforced . | . . . Active Scanning Responses . | . . . Cargo Convoy Interrupts . | . . . Stealth | -11 -10 -10 --------- Run | Yrd Mat Sub Distress Signals 3 | . 3 . Communications Jammed . | . . . Distress Signals . | . . . Times Spotted 30 | . 24 6 Peak Tracking Total 3 | . 3 2 Tactical Retreats 1 | . 1 . Traps | -11 -10 -10 ------- Run | Yrd Mat Sub Traps Triggered 2 | . 2 . Indirectly . | . . . Trap Hack Attempts . | . . . Triggered . | . . . Disarmed . | . . . Reprogrammed . | . . . Reused . | . . . Traps Extracted . | . . . Installed . | . . . Triggered . | . . . Machines | -11 -10 -10 ---------- Run | Yrd Mat Sub Machines Disabled 2 | . . 2 Max in Single Turn 1 | . . 1 Machines Repaired . | . . . Machines Dismantled . | . . . Machines Sabotaged . | . . . Overloaded Fab Kills . | . . . Hacking | -11 -10 -10 --------- Run | Yrd Mat Sub Machines Accessed 7 | . 6 1 Terminals 5 | . 5 . Fabricators . | . . . Repair Stations . | . . . Recycling Units 1 | . 1 . Scanalyzers . | . . . Garrison Access . | . . . Total Hacks 17 | . 14 3 Successful 10 | . 7 3 Failed 7 | . 7 . Catastrophic . | . . . Database Lockouts . | . . . Manual 2 | . . 2 Terminals 13 | . 13 . Fabricators . | . . . Repair Stations . | . . . Recycling Units 1 | . 1 . Scanalyzers . | . . . Garrison Access . | . . . Terminal Hacks 9 | . 6 3 Record 4 | . 1 3 Prototype ID Bank 1 | . 1 . Emergency Access Points 1 | . 1 . Recycling Unit Index 1 | . 1 . Unreport Threat 2 | . 2 . Fabricator Hacks . | . . . Repair Station Hacks . | . . . Recycling Unit Hacks 1 | . 1 . Report Inventory 1 | . 1 . Scanalyzer . | . . . Garrison Access Hacks . | . . . Unauthorized Hacks . | . . . Terminals . | . . . Fabricators . | . . . Repair Stations . | . . . Recycling Units . | . . . Scanalyzers . | . . . Garrison Access . | . . . Data Cores Recovered . | . . . Used . | . . . Hacking Detections 4 | . 4 . Full Trace Events 2 | . 2 . Feedback Events . | . . . Feedback Blocked . | . . . Robot Schematics Acquired . | . . . Robots Built . | . . . Authchips . | . . . Time . | . . . Total Robot Build Rating . | . . . Part Schematics Acquired . | . . . Parts Built . | . . . Authchips . | . . . Time . | . . . Total Part Build Rating . | . . . Part Studies Acquired . | . . . Parts Repaired . | . . . Time . | . . . Parts Recycled . | . . . Recycled Matter . | . . . Retrieved Matter . | . . . Retrieved Components . | . . . Parts Scanalyzed . | . . . Part Schematics Acquired . | . . . Parts Damaged . | . . . Bothacking | -11 -10 -10 ------------ Run | Yrd Mat Sub Used RIF Installer . | . . . Robots Hacked . | . . . Non-combat . | . . . Combat . | . . . Robot Hacks Applied . | . . . Relay Couplers Released . | . . . Fabnet Peak Effective % . | . . . Robots Rewired . | . . . Allies Hacked . | . . . Hacks Repelled . | . . . Allies | -11 -10 -10 -------- Run | Yrd Mat Sub Total Allies . | . . . Largest Group . | . . . Highest-Rated Group . | . . . Highest-Rated Ally . | . . . Total Orders . | . . . Ally Attacks . | . . . Total Damage . | . . . Kills . | . . . Allies Corrupted . | . . . Allies Melted . | . . . Intel | -11 -10 -10 ------- Run | Yrd Mat Sub Active Infowar (turns) . | . . . Robot Analysis Total . | . . . Derelict Logs Recovered 1 | . . 1 Drone Launches . | . . . Drone Recoveries . | . . . Exploration | -11 -10 -10 ------------- Run | Yrd Mat Sub Turns Passed 3479 | 115 1468 1896 Spaces Moved 1306 | 68 667 571 Core 4 | 4 . . Treads 1264 | 64 667 533 Legs . | . . . Wheels 38 | . . 38 Hover . | . . . Flight . | . . . Fastest Speed 50 | 50 160 117 Average Speed 220 | 153 188 264 Slowest Speed 320 | 160 240 320 Overloaded Moves . | . . . Propulsion Burnouts . | . . . Robots Hopped . | . . . Potential Cave-ins . | . . . Cave-ins Triggered . | . . . Exploration Rate (%) 40 | 4 88 29 Regions Visited 2 Branch Regions 1 Pre-discovered Areas 1 | . . 1 Known Exits Taken 1 | . 1 . Unknown Exits Taken 1 | 1 . . Scrap Searched 2 | . . 2 Spaces Dug . | . . . Terrain Destroyed 57 | . . 57 Melee . | . . . Projectile . | . . . AOE 57 | . . 57 Terrain Rammed . | . . . Walls Destroyed . | . . . Machines Disabled . | . . . Actions | -11 -10 -10 --------- Run | Yrd Mat Sub Total 1764 | 76 785 903 Wait 337 | . 53 284 Move 1304 | 67 666 571 Hop . | . . . Pick Up 9 | 1 6 2 Fast Attach 12 | 7 2 3 Attach 9 | . 1 8 Detach 4 | 1 . 3 Swap 1 | . 1 . Drop 2 | . 2 . Fire 86 | . 54 32 Melee . | . . . Ram . | . . . Kick . | . . . Crush . | . . . Escape Stasis . | . . . Rewire . | . . . Trap . | . . . Miscellaneous . | . . . Route ------- -11/Scrapyard -10/Materials (discovered 4 exits: *Mat x2 / *Min / *Sub) -10/Subcaves (discovered 1 exit: *Mat) History --------- Turn | Location | Event 43 | -11/Scrapyard | Discovered new exit (range 15) 116 | -11/Scrapyard | Entered Materials 318 | -10/Materials | Build established: Mutant 420 | -10/Materials | Discovered new exit (range 12) 679 | -10/Materials | Discovered new exit (range 15) 711 | -10/Materials | Identified exit to Materials 1176 | -10/Materials | Discovered exit to Materials (range 15) 1351 | -10/Materials | Identified exit to Mines 1574 | -10/Materials | Discovered new exit (range 5) 1582 | -10/Materials | Identified exit to Subcaves 1584 | -10/Materials | Entered Subcaves 1623 | -10/Subcaves | Learned location of Zion (-6) 1861 | -10/Subcaves | Discovered new exit (range 11) 1899 | -10/Subcaves | Identified exit to Materials 2020 | -10/Subcaves | Visited Clippyterm 2027 | -10/Subcaves | Learned Factory stockpile data 2336 | -10/Subcaves | Disturbed a concealed Subdweller 2355 | -10/Subcaves | Core integrity fell below 50% 2379 | -10/Subcaves | Lost 4 parts (1p1n2w) 3469 | -10/Subcaves | Core integrity fell below 20% 3480 | -10/Subcaves | Destroyed by KI-XZN(R) with Subdweller Laser Last Messages --------------- 02446_ System corrupted: Matter fused (-8). 02542_ U6-CBR(z): "She is not going to be happy we haven't found any suitable candidates yet." 02661_ System corrupted: Energy discharge (-48). 02894_ &Z%6/BVZW91#T5EG W#ZLLOC%FQB&P 03146_ 8YBRMTGH>HHBGFEDJEYCB= 03472_ Flamer destroyed. 03478_ Lgt. Assault Rifle destroyed. 03478_ Sub. Monowheel destroyed. Map ----- +----------------------------------------------------+ | ?????????????????????????????????????????????????? | | ?????????????????????????????????????????????????? | | ?????????????????????????????????????????????????? | | ?????????????????????????????????????????????????? | | ?????????????????????????????????????????????????? | | ?????????????????????????????????????????????????? | | ?????????????????????????????????????????????????? | | ?????????????????????????????????????????????????? | | ?????????????????????????????????????????????????? | | ?????????????????????????????????????????????????? | | ?????????????????????????????????????????????????? | | ?????????????????????????????????????????????????? | | ?????????????????????????????????????????????????? | | ?????????????????????????????????????????????????? | | ?????????????????????????????????????????????????? | | ?????????????????????????????????????????????????? | | ??????????????????##?????????????????????????????? | | ?????????????????## ###??????????????????????????? | | ?????????????????# ##?????????#?? ????????????? | | ?????????????????# ##???????# ? ?????????????? | | #????????????####?# #??????? ? #?? ??????????? | | ####????????## #?# #??????? ## ## ???????????? | | #????????# #?# ##?????? ??????????? | | #?????????# #### ##?????? ???????????? | | #?????####?# #### ####?? ?????????????? | | ####????## ### ### @#?# ???????????????? | | #######?# ## RR### #?????????????????? | | ## ### ## ## #?????????????????? | | ### ##????????????????? | | ##?# #????????????????? | | ### # ## #?## #????????????????? | | ##?######## #?# ######????????????????? | | #????#### #?# ##?????????????????????? | | #???# ### ##??????????????????????? | | ##???## ## ##???????????????????????? | | ###?????### ##????????????????????????? | | ??????????###### #?????????????????????????? | | ???????????????## #??????????? ?????????????? | | ???????????????## ##????????? ????????????? | | ???????????????# [####?????? #????????????? | | ???????????????#### ! ##?### #????????????? | | ??????????????????###& & ## #????????????? | | ?????????????????##?## #????????????? | | ????????????????## ##"" #????????????? | | ???????????????## " "" ####????????????? | | ???????????????# """ #???????????????? | | ???????????????# & """""" ##???????????????? | | ???????????????## % """########????????????????? | | ????????????????####"""""#???????????????????????? | | ???????????????????#"" "##???????????????????????? | +----------------------------------------------------+ Best States ------------- Heat Dissipation 25 Energy Generation 10 Energy Capacity 250 Matter Stores 300 Matter Capacity 300 Sight Range 16 Terrain Scan Density 10 Evasion (%) 40 Recoil Reduction 2 Item Schematics ----------------- None Robot Schematics ------------------ None Fabricated ------------ Nothing Repaired ---------- Nothing Studied --------- None Alien Tech Used ----------------- None Achievements -------------- None Challenges ------------ None Game ------ Seed RelayThrusterDoomcannon Manual? 0 Play Time 00:16:06 Cumulative 23.9 hours Start 2026.02.16 @ 12:11:36 End 2026.02.16 @ 12:22:53 Sessions 1 Manual Loads 0 Difficulty Rogue Special Mode None Game No. 61 Rogue 61 Adventurer 0 Explorer 0 Win Type - Total 0 Types 0/0/0/0/0/0/0/0/0/0 Lore% 11 Gallery% 24 Achievement% 19 Wizard Run 0 Options --------- Layout 1 ASCII 0 Keyboard 1 Movement Vi Keybinds 0 Fullscreen 1 Font 24/Smallcaps Map View 50x35 Zoom Use 0% Tactical HUD 1 Map Filters NONE Filters NONE Steam 1 RUN: 6a9fe17d-be75-45e7-ab7d-d94004726aea